bitfinex/quotes_BTCUSD_20220201
["timestamp","ask_amount","ask_price","bid_price","bid_amount"]
[1643731439574,0.001,38702.0,38689.0,0.04530555]
[1643731439772,0.001,38702.0,38691.0,0.5]
[1643731440072,0.001,38702.0,38699.0,0.14097869]
[1643731440673,0.001,38702.0,38699.0,0.63412869]
[1643731440873,0.22,38700.0,38699.0,0.63412869]
[1643731441673,0.22,38700.0,38699.0,0.72611886]
[1643731442074,0.22,38700.0,38699.0,1.39045097]
[1643731442333,0.22,38700.0,38699.0,1.12545886]
[1643731442732,0.0451,38700.0,38699.0,1.12545886]
[1643731442930,0.0001,38700.0,38699.0,1.12545886]
[1643731443335,0.002,38706.0,38700.0,0.9]
[1643731443636,0.002,38711.0,38707.0,0.5]
[1643731443834,0.002,38711.0,38708.0,0.34934]
[1643731444031,0.002,38711.0,38707.0,0.5]
[1643731444432,0.002,38711.0,38709.0,0.31103913]
[1643731444631,0.00334428,38711.0,38710.0,0.94088513]
[1643731444831,0.00334428,38711.0,38710.0,0.59088513]
[1643731445633,0.002,38711.0,38710.0,0.59088513]
[1643731446472,0.002,38711.0,38710.0,0.99088513]
[1643731446670,0.002,38711.0,38710.0,0.59088513]
[1643731448672,0.002,38711.0,38710.0,0.5]
[1643731449076,0.002,38711.0,38694.0,0.15105426]
[1643731449077,2.49862876,38711.0,38694.0,0.064622]
[1643731449275,2.49862876,38711.0,38693.0,0.6628]
[1643731449276,0.1,38710.0,38693.0,0.6628]
[1643731449475,0.30594876,38709.0,38693.0,0.6628]
[1643731449727,1.519,38708.0,38693.0,0.6628]
[1643731449921,0.36440401,38699.0,38694.0,0.09362502]
[1643731450121,0.0467,38698.0,38694.0,0.09362502]
[1643731450326,0.0467,38698.0,38693.0,0.6628]
[1643731450723,0.04804428,38698.0,38693.0,0.6628]
[1643731451125,0.04804428,38698.0,38691.0,0.12833746]
[1643731451323,0.29928461,38698.0,38691.0,0.12833746]
[1643731451528,0.09902664,38694.0,38687.0,0.7919]
[1643731451726,0.33602999,38693.0,38686.0,0.6685]
[1643731451926,1.76967299,38693.0,38686.0,0.6685]
[1643731452124,1.369,38691.0,38686.0,0.6685]
[1643731452324,0.39617365,38690.0,38686.0,0.6685]
[1643731452524,0.27417053,38689.0,38684.0,0.09798373]
[1643731452724,0.14481301,38688.0,38680.0,0.13188527]
[1643731452923,0.31090752,38687.0,38680.0,0.13045287]
[1643731453126,0.0467,38686.0,38680.0,0.13188513]
[1643731453325,0.0467,38686.0,38682.0,0.04948306]
[1643731453580,0.0467,38686.0,38684.0,2.43026527]
[1643731453781,0.00134419,38691.0,38685.0,0.38323704]
[1643731453981,0.0467,38692.0,38690.0,0.12320919]
[1643731454182,0.0467,38692.0,38685.0,0.05]
[1643731454379,0.00134425,38691.0,38690.0,0.11594312]
[1643731454578,0.00134425,38691.0,38690.0,0.09094312]
[1643731455379,0.0467,38692.0,38690.0,0.09094312]
[1643731455579,0.04804428,38692.0,38688.0,0.11992302]
[1643731456482,0.0467,38692.0,38688.0,0.11992302]
[1643731456684,0.04804428,38692.0,38688.0,0.11992302]
[1643731457080,0.04804428,38692.0,38691.0,0.07369392]
[1643731457729,0.0467,38692.0,38691.0,0.07369392]
[1643731457927,0.0467,38692.0,38688.0,0.05]
[1643731458128,0.10134428,38693.0,38686.0,0.11463]
[1643731458329,0.0467,38692.0,38686.0,0.11463]
[1643731458528,0.0467,38692.0,38686.0,0.05]
[1643731458729,0.0467,38692.0,38682.0,0.129257]
[1643731458730,0.0467,38692.0,38684.0,0.14039876]
[1643731459129,0.07683427,38691.0,38686.0,0.08153547]
[1643731459335,0.12683427,38691.0,38686.0,0.08153547]
[1643731459533,0.12683427,38691.0,38684.0,0.14039876]
[1643731459831,0.0467,38690.0,38686.0,0.05]
[1643731460232,0.1,38695.0,38686.0,0.22926]
[1643731460433,0.00134423,38691.0,38686.0,0.22926]
[1643731460632,0.00134423,38691.0,38688.0,0.03986135]
[1643731460833,0.00134423,38691.0,38689.0,0.34934]
[1643731461072,0.00134423,38691.0,38690.0,1.14858935]
[1643731461275,0.26049058,38700.0,38691.0,0.04533009]
[1643731461472,0.36499888,38701.0,38691.0,0.04533009]
[1643731461473,0.00134428,38692.0,38691.0,0.04533009]
[1643731461878,0.00134428,38692.0,38691.0,1.09467009]
[1643731462074,0.00134428,38692.0,38691.0,0.34934]
[1643731462371,0.00134428,38692.0,38691.0,0.05]
[1643731462571,1.72949058,38705.0,38691.0,0.05]
[1643731462773,0.00134428,38693.0,38691.0,0.05]
[1643731462972,0.00134428,38693.0,38692.0,0.14372745]
[1643731463672,0.07498641,38697.0,38692.0,0.14372745]
[1643731463877,0.00134428,38694.0,38693.0,0.064625]
[1643731464832,0.00134428,38694.0,38689.0,0.02081405]
[1643731464833,0.0467,38694.0,38689.0,0.02081405]
[1643731465032,0.26049058,38693.0,38689.0,0.02081405]
[1643731465231,1.469,38693.0,38689.0,0.07081405]
[1643731465428,1.4157,38692.0,38689.0,0.07081405]
[1643731465631,0.27396375,38691.0,38689.0,0.07081405]
[1643731465831,0.8967,38690.0,38689.0,0.07081405]
[1643731466029,0.8967,38690.0,38679.0,0.2546]
[1643731466030,0.75,38689.0,38679.0,0.05]
[1643731466233,1.80550158,38688.0,38685.0,0.05]
[1643731466430,0.0467,38687.0,38680.0,0.00143032]
[1643731466630,1.369,38685.0,38682.0,0.05]
[1643731466834,0.40719058,38684.0,38682.0,0.05]
[1643731467030,2.40501058,38683.0,38682.0,0.05]
[1643731467234,2.29122,38683.0,38682.0,0.05]
[1643731467429,2.29122,38683.0,38680.0,0.0014302]
[1643731467630,1.85885058,38682.0,38680.0,0.0014302]
[1643731467832,2.19122,38681.0,38680.0,0.0014302]
[1643731468032,2.2559,38681.0,38680.0,0.0014302]
[1643731468232,1.0369,38681.0,38680.0,0.0014302]
[1643731468474,1.0369,38681.0,38676.0,0.05]
[1643731468673,0.1,38680.0,38679.0,0.00143021]
[1643731468876,0.3891933,38680.0,38679.0,0.00143021]
[1643731469275,0.1467,38680.0,38679.0,1.10143021]
[1643731469475,0.77552,38681.0,38679.0,1.15143021]
[1643731469674,0.77552,38681.0,38679.0,0.05]
[1643731470074,0.77552,38681.0,38678.0,0.00143025]
[1643731470374,0.07884409,38680.0,38678.0,0.00143025]
[1643731470575,0.77552,38681.0,38678.0,0.00143025]
[1643731470975,0.77552,38681.0,38676.0,0.22664801]
[1643731471174,0.77552,38681.0,38678.0,0.00142895]
[1643731471377,0.1,38680.0,38678.0,0.00142895]
[1643731472233,0.1,38680.0,38676.0,0.22664801]
[1643731472234,0.17553391,38680.0,38677.0,0.00142896]
[1643731473130,0.1,38680.0,38677.0,0.00142896]
[1643731473329,0.1,38680.0,38676.0,0.22664801]
[1643731473532,0.1,38680.0,38677.0,0.00142912]
[1643731473731,0.15,38680.0,38677.0,0.00142912]
[1643731474530,0.15,38680.0,38676.0,0.05]
[1643731474729,0.15,38680.0,38677.0,0.00142912]
[1643731474930,0.09399944,38679.0,38677.0,0.00142912]
[1643731475633,1.20001223,38678.0,38676.0,0.05]
[1643731475832,0.1,38677.0,38676.0,0.05142913]
[1643731476475,0.1467,38677.0,38676.0,0.05142913]
[1643731476876,0.1467,38677.0,38676.0,0.05]
[1643731477076,0.0467,38677.0,38676.0,0.05]
[1643731477679,0.0967,38677.0,38676.0,0.05]
[1643731477876,0.0467,38677.0,38676.0,0.05]
[1643731478278,0.33120189,38677.0,38676.0,0.05]
[1643731478479,1.4157,38677.0,38676.0,0.05]
[1643731478676,1.5657,38677.0,38676.0,0.05]
[1643731480829,0.0467,38677.0,38676.0,0.05]
[1643731481035,0.20268369,38682.0,38676.0,0.05]
[1643731481232,0.25545513,38689.0,38677.0,0.04535074]
[1643731481432,0.25545513,38689.0,38679.0,0.0360718]
[1643731481728,1.369,38688.0,38680.0,0.12029333]
[1643731481927,1.369,38688.0,38680.0,0.12172239]
[1643731481928,0.09310921,38683.0,38680.0,0.12172239]
[1643731482127,0.09310921,38683.0,38680.0,0.17172239]
[1643731482331,0.09310921,38683.0,38680.0,0.05142906]
[1643731482530,0.09310921,38683.0,38680.0,0.00142906]
[1643731482934,0.09310921,38683.0,38676.0,0.1]
[1643731483132,0.14310921,38683.0,38680.0,0.00142905]
[1643731483585,0.1,38687.0,38680.0,0.00142905]
[1643731483784,0.05,38687.0,38680.0,0.00142905]
[1643731484181,0.15,38688.0,38679.0,0.05]
[1643731484385,0.15,38688.0,38680.0,0.00142907]
[1643731484584,0.10387343,38685.0,38680.0,0.00142907]
[1643731484784,0.15387343,38685.0,38680.0,0.00142907]
[1643731485385,0.15387343,38685.0,38679.0,0.05]
[1643731485591,0.1,38688.0,38684.0,0.15649093]
[1643731485887,0.064652,38688.0,38680.0,0.00142905]
[1643731486091,0.25545513,38689.0,38680.0,0.29987172]
[1643731486289,0.25545513,38689.0,38681.0,0.0480728]
[1643731486488,0.25545513,38689.0,38688.0,0.47863158]
[1643731486687,0.25545513,38689.0,38688.0,0.07863158]
[1643731486888,0.25545513,38689.0,38688.0,0.2234239]
[1643731487735,0.4975,38696.0,38688.0,0.53044832]
[1643731487933,0.00134166,38691.0,38689.0,0.04728899]
[1643731488133,0.00134166,38691.0,38690.0,0.61667423]
[1643731488330,0.00134166,38691.0,38690.0,0.66667423]
[1643731488529,4.166e-05,38691.0,38690.0,0.39934]
[1643731488730,4.166e-05,38691.0,38690.0,0.39548398]
[1643731489030,0.26760658,38705.0,38696.0,0.05]
[1643731489232,0.02115561,38703.0,38696.0,0.05]
[1643731489630,0.09863111,38700.0,38696.0,0.05]
[1643731490131,0.14863111,38700.0,38696.0,0.05]
[1643731490330,0.14863111,38700.0,38696.0,0.03824623]
[1643731491174,0.09863111,38700.0,38696.0,0.03824623]
[1643731492378,0.14863111,38700.0,38696.0,0.03824623]
[1643731492776,0.14996954,38700.0,38696.0,0.03824623]
[1643731492977,0.09996954,38700.0,38696.0,0.03824623]
[1643731493179,0.00133843,38700.0,38696.0,0.03824623]
[1643731493777,0.05,38704.0,38696.0,0.03824623]
[1643731494076,0.25725658,38705.0,38696.0,0.03824623]
[1643731494077,0.00133843,38700.0,38696.0,0.03824623]
[1643731494935,0.13673191,38701.0,38696.0,0.03824623]
[1643731495135,0.00133843,38700.0,38697.0,0.11729081]
[1643731495535,0.00133843,38700.0,38696.0,0.03824623]
[1643731495734,0.25768995,38700.0,38696.0,0.03824623]
[1643731496134,0.30635152,38700.0,38696.0,0.03824623]
[1643731496335,0.1,38699.0,38696.0,0.03824623]
[1643731496535,0.09808429,38698.0,38696.0,0.03824623]
[1643731496737,1.51708429,38698.0,38696.0,0.03824623]
[1643731497137,0.1,38697.0,38696.0,0.03824623]
[1643731497436,0.15,38697.0,38696.0,0.03824623]
[1643731498037,1.519,38697.0,38696.0,0.03824623]
[1643731498239,1.5657,38697.0,38696.0,0.03824623]
[1643731499080,2.34096,38697.0,38696.0,0.03824623]
[1643731499280,2.34096,38697.0,38696.0,0.00606798]
[1643731499480,0.064654,38694.0,38692.0,0.05]
[1643731499681,1.4157,38693.0,38692.0,0.05]
[1643731499880,0.0467,38693.0,38692.0,0.05]
[1643731500081,1.5157,38693.0,38692.0,0.05]
[1643731500281,0.1467,38693.0,38692.0,0.05]
[1643731500483,0.39502538,38693.0,38692.0,0.05]
[1643731501086,0.39502538,38693.0,38686.0,0.00143117]
[1643731501284,0.1,38692.0,38686.0,0.00143117]
[1643731501486,0.0467,38691.0,38686.0,0.00143117]
[1643731501882,0.30204723,38691.0,38686.0,0.00143117]
[1643731502084,0.30204723,38691.0,38685.0,0.05]
[1643731502327,0.1,38690.0,38686.0,0.0014311]
[1643731503328,0.1,38690.0,38685.0,0.13318532]
[1643731503527,0.25534723,38691.0,38686.0,0.25404116]
[1643731503732,0.25534723,38691.0,38686.0,0.001429]
[1643731503928,0.09633575,38693.0,38686.0,0.001429]
[1643731504128,0.0467,38699.0,38686.0,0.001429]
[1643731504330,0.24921031,38696.0,38686.0,0.001429]
[1643731504528,0.24921031,38696.0,38685.0,0.12818532]
[1643731504727,0.064646,38694.0,38685.0,0.12818532]
[1643731505127,0.31984873,38694.0,38685.0,0.12818532]
[1643731505335,0.0467,38699.0,38686.0,0.55049995]
[1643731505632,0.2011,38708.0,38691.0,0.064619]
[1643731505633,0.08036074,38705.0,38691.0,0.064619]
[1643731505828,0.08036074,38705.0,38693.0,0.05]
[1643731505829,0.002,38705.0,38693.0,0.05]
[1643731506083,0.002,38705.0,38694.0,0.25478718]
[1643731506284,0.00066959,38695.0,38694.0,1.27775692]
[1643731506583,0.00066959,38695.0,38694.0,2.01122283]
[1643731506783,9.59e-06,38695.0,38694.0,2.26770009]
[1643731506983,9.59e-06,38695.0,38694.0,2.03357418]
[1643731507282,0.0006696,38696.0,38694.0,2.03357418]
[1643731507482,0.0006696,38696.0,38695.0,1.90412718]
[1643731507681,0.0006696,38696.0,38695.0,0.80412718]
[1643731507880,0.0006696,38696.0,38695.0,0.76872518]
[1643731508082,0.00010959,38705.0,38695.0,0.79425124]
[1643731508286,0.00010959,38705.0,38697.0,0.064605]
[1643731508582,0.00010959,38705.0,38704.0,0.23766017]
[1643731508788,0.00010959,38705.0,38704.0,0.58700017]
[1643731509184,0.00010959,38705.0,38703.0,0.55]
[1643731509486,0.00010959,38705.0,38703.0,0.5]
[1643731510130,0.21299257,38704.0,38696.0,0.5]
[1643731510328,0.21299257,38704.0,38696.0,0.59075911]
[1643731510527,0.21242257,38704.0,38696.0,0.59075911]
[1643731510730,0.00066545,38702.0,38696.0,0.59075911]
[1643731510928,0.00066545,38702.0,38696.0,0.5]
[1643731511136,0.0467,38701.0,38696.0,0.5]
[1643731511336,0.0467,38701.0,38696.0,0.22841528]
[1643731511532,0.05627061,38701.0,38693.0,0.55]
[1643731511730,0.25606208,38700.0,38693.0,0.05]
[1643731512029,0.12416433,38699.0,38693.0,0.05]
[1643731512233,1.369,38697.0,38693.0,0.05]
[1643731512431,1.369,38695.0,38693.0,0.05]
[1643731512632,0.82199,38694.0,38693.0,0.05]
[1643731512833,2.29099,38694.0,38693.0,0.05]
[1643731513575,2.49359021,38694.0,38693.0,0.05]
[1643731515175,1.12459021,38694.0,38693.0,0.05]
[1643731515376,2.49359021,38694.0,38693.0,0.05]
[1643731516778,1.12459021,38694.0,38693.0,0.05]
[1643731517428,2.49359021,38694.0,38693.0,0.05]
[1643731517629,1.12459021,38694.0,38693.0,0.05]
[1643731518237,0.97789021,38694.0,38693.0,0.05]
[1643731518433,0.77529,38694.0,38693.0,0.95268104]
[1643731518631,0.77529,38694.0,38693.0,1.50268104]
[1643731518832,0.77529,38694.0,38693.0,0.35992772]
[1643731519235,0.00133079,38697.0,38693.0,0.05]
[1643731520235,0.00010959,38705.0,38693.0,0.05]
[1643731520432,0.00133085,38697.0,38693.0,0.05]
[1643731521075,0.08310616,38703.0,38699.0,0.10224657]
[1643731521277,0.08110616,38703.0,38693.0,0.30749402]
[1643731521477,0.08110616,38703.0,38693.0,0.05]
[1643731522078,0.06464,38702.0,38693.0,0.05]
[1643731522279,0.11134,38702.0,38693.0,0.05]
[1643731522477,0.22633011,38698.0,38693.0,0.05]
[1643731522679,0.16955639,38697.0,38693.0,0.05]
[1643731522878,0.42378351,38697.0,38693.0,0.05]
[1643731524081,0.42378351,38697.0,38693.0,0.051594]
[1643731524931,1.79278351,38697.0,38693.0,0.05]
[1643731525131,1.79278351,38697.0,38693.0,0.051594]
[1643731525635,1.369,38695.0,38693.0,0.051594]
[1643731525935,3.5348456,38694.0,38693.0,0.001594]
[1643731526132,3.8848456,38694.0,38685.0,0.05]
[1643731526331,3.8848456,38694.0,38682.0,0.6465]
[1643731526332,0.064668,38691.0,38682.0,0.6465]
[1643731526530,1.369,38689.0,38685.0,0.00637718]
[1643731526728,0.1467,38688.0,38685.0,0.00637718]
[1643731527330,0.3478651,38687.0,38684.0,0.05]
[1643731527530,0.3967,38686.0,38685.0,0.0015942]
[1643731527731,1.8657,38686.0,38685.0,0.0015942]
[1643731528331,0.1467,38686.0,38685.0,0.0015942]
[1643731528577,0.1467,38686.0,38684.0,0.05]
[1643731528578,0.1467,38686.0,38684.0,0.15150635]
[1643731528778,0.1467,38686.0,38684.0,0.15310058]
[1643731528779,0.0467,38686.0,38684.0,0.15310058]
[1643731528978,0.1467,38686.0,38684.0,0.15310058]
[1643731529179,0.1,38688.0,38684.0,0.15310058]
[1643731529378,0.1,38688.0,38684.0,0.51088488]
[1643731529682,0.98619046,38694.0,38684.0,0.38042079]
[1643731529879,0.07705185,38691.0,38684.0,0.15150635]
[1643731530081,0.07705185,38691.0,38684.0,0.05159421]
[1643731530281,1.4157,38690.0,38684.0,0.05159421]
[1643731530979,0.28874444,38686.0,38684.0,0.05]
[1643731531181,0.1,38689.0,38685.0,0.00093036]
[1643731531382,0.17731299,38692.0,38688.0,0.07837633]
[1643731531581,0.17731299,38692.0,38685.0,0.00093036]
[1643731531881,0.07731299,38692.0,38685.0,0.00093036]
[1643731532082,0.22632333,38689.0,38684.0,0.05]
[1643731532331,0.22632333,38689.0,38687.0,0.00093033]
[1643731532927,0.1,38691.0,38687.0,0.00093033]
[1643731533328,0.1,38691.0,38685.0,0.25488812]
[1643731533329,0.1,38693.0,38685.0,0.05]
[1643731533529,0.10752712,38697.0,38687.0,0.00093032]
[1643731533928,0.10752712,38697.0,38687.0,0.42295629]
[1643731534127,0.09642489,38692.0,38688.0,0.09804482]
[1643731534328,0.09642489,38692.0,38688.0,0.14804482]
[1643731534527,0.09642489,38692.0,38688.0,0.05]
[1643731534730,0.09642489,38692.0,38688.0,0.00159412]
[1643731535129,1.369,38691.0,38688.0,0.00159412]
[1643731535330,0.32043873,38690.0,38688.0,0.00119854]
[1643731535733,0.1,38690.0,38684.0,0.05]
[1643731535978,1.469,38690.0,38684.0,0.05]
[1643731536179,0.0467,38689.0,38684.0,0.05]
[1643731536381,0.064658,38688.0,38684.0,0.05]
[1643731536579,0.0467,38687.0,38684.0,0.05]
[1643731537182,0.25585814,38686.0,38684.0,0.05]
[1643731537682,0.1,38686.0,38684.0,0.05]
[1643731538082,0.19367475,38686.0,38684.0,0.05]
[1643731538682,0.03855466,38686.0,38684.0,0.05]
[1643731538880,0.27451853,38686.0,38684.0,0.05]
[1643731539080,0.0467,38685.0,38684.0,0.05]
[1643731539480,1.4157,38685.0,38684.0,0.05]
[1643731539740,1.4657,38685.0,38683.0,0.00159376]
[1643731539933,1.57334249,38685.0,38683.0,0.00159376]
[1643731540132,2.08367,38684.0,38683.0,0.00159376]
[1643731540337,2.23037,38684.0,38683.0,0.00159376]
[1643731540532,3.00589,38684.0,38681.0,0.05]
[1643731540732,1.05156174,38684.0,38682.0,0.00159378]
[1643731540934,0.98689,38684.0,38682.0,0.00159378]
[1643731541534,0.92222,38684.0,38682.0,0.00159378]
[1643731541737,0.92222,38684.0,38680.0,0.15310893]
[1643731542035,0.71848438,38684.0,38681.0,0.00159379]
[1643731543034,0.71848438,38684.0,38680.0,0.14810893]
[1643731543234,0.1,38683.0,38681.0,0.0015938]
[1643731543477,0.71848438,38684.0,38681.0,0.0015938]
[1643731544276,0.71848438,38684.0,38680.0,0.19810893]
[1643731544477,0.71848438,38684.0,38681.0,0.0015938]
[1643731544978,0.71848438,38684.0,38680.0,0.19470273]
[1643731545878,0.71848438,38684.0,38680.0,0.0915938]
[1643731546680,0.1,38683.0,38680.0,0.0915938]
[1643731546888,0.1,38683.0,38666.0,0.06465]
[1643731546889,0.25859585,38664.0,38657.0,0.3209871]
[1643731547089,0.05,38679.0,38646.0,0.4664213]
[1643731547090,0.0467,38663.0,38646.0,0.4664213]
[1643731547345,0.32650243,38673.0,38652.0,0.05]
[1643731547538,0.32650243,38673.0,38653.0,0.6546]
[1643731547539,0.57862719,38672.0,38653.0,0.6546]
[1643731547840,0.05,38662.0,38654.0,0.27677336]
[1643731548044,0.34597939,38661.0,38653.0,0.6546]
[1643731548242,0.34597939,38661.0,38648.0,0.24691079]
[1643731548243,0.35212476,38660.0,38648.0,0.04331079]
[1643731548541,0.35212476,38660.0,38644.0,0.7108]
[1643731548542,0.0467,38659.0,38644.0,0.05]
[1643731548742,0.0467,38659.0,38628.0,0.1431219]
[1643731548743,0.05,38654.0,38628.0,0.1431219]
[1643731548937,0.064719,38651.0,38650.0,0.09083153]
[1643731549140,0.840909,38651.0,38639.0,0.30787225]
[1643731549339,1.052328,38651.0,38639.0,0.30787225]
[1643731549541,0.987609,38651.0,38639.0,0.30787225]
[1643731549739,0.987609,38651.0,38644.0,0.0191808]
[1643731549940,0.97289,38651.0,38640.0,0.03574893]
[1643731550139,0.97289,38651.0,38647.0,0.29155672]
[1643731550140,0.92289,38651.0,38647.0,0.29155672]
[1643731550343,0.92289,38651.0,38645.0,0.07502336]
[1643731550543,0.97289,38651.0,38645.0,0.07502336]
[1643731550991,0.82289,38651.0,38645.0,0.07502336]
[1643731551190,0.82289,38651.0,38645.0,0.12502336]
[1643731551394,0.82289,38651.0,38647.0,0.15350098]
[1643731551590,0.82289,38651.0,38648.0,0.23045148]
[1643731552192,0.29890195,38651.0,38649.0,0.03540708]
[1643731552390,0.20275307,38664.0,38652.0,0.28579384]
[1643731552589,0.0467,38666.0,38661.0,0.12797319]
[1643731552790,0.5,38670.0,38661.0,0.12797319]
[1643731552992,0.19625,38669.0,38661.0,0.12797319]
[1643731553193,0.0997,38668.0,38661.0,0.12797319]
[1643731554097,0.0997,38668.0,38657.0,0.04928312]
[1643731554098,0.258783,38662.0,38657.0,0.10198018]
[1643731554292,0.02924823,38657.0,38653.0,0.6648]
[1643731554506,0.05,38661.0,38653.0,0.6648]
[1643731554507,0.02924823,38654.0,38653.0,0.6648]
[1643731554745,0.02924823,38657.0,38643.0,0.28728439]
[1643731554942,0.05,38654.0,38653.0,0.11478635]
[1643731555141,0.05,38654.0,38653.0,0.20373801]
[1643731555747,0.05,38654.0,38653.0,0.11478635]
[1643731556644,0.07924823,38654.0,38652.0,0.00090269]
[1643731557041,0.15723774,38654.0,38652.0,0.00090269]
[1643731557342,0.15723774,38654.0,38649.0,0.01946422]
[1643731557343,0.24017141,38652.0,38649.0,0.01946422]
[1643731557543,0.09395123,38651.0,38646.0,0.15319841]
[1643731557744,0.02924823,38648.0,38646.0,0.15319841]
[1643731557943,0.02924823,38648.0,38645.0,0.00361133]
[1643731558142,0.02924823,38648.0,38642.0,0.6748]
[1643731558349,0.02924823,38643.0,38642.0,0.6748]
[1643731558589,0.02924823,38636.0,38635.0,0.2006]
[1643731558786,0.02924823,38636.0,38632.0,0.6929]
[1643731558986,0.114729,38637.0,38627.0,0.11686835]
[1643731558987,0.02924823,38633.0,38627.0,0.11686835]
[1643731559189,0.02924823,38628.0,38621.0,0.01]
[1643731559485,0.02924823,38624.0,38621.0,0.11250437]
[1643731559884,0.02924823,38625.0,38621.0,0.11250437]
[1643731560084,0.07924823,38628.0,38622.0,0.42779123]
[1643731560284,0.07924823,38628.0,38621.0,0.01]
[1643731560285,0.02924823,38623.0,38621.0,0.01]
[1643731560685,0.28716024,38623.0,38621.0,0.01]
[1643731560889,0.02924823,38623.0,38621.0,0.01]
[1643731561084,0.02924823,38623.0,38621.0,0.09059393]
[1643731561288,0.1467,38624.0,38621.0,0.09059393]
[1643731561486,0.0967,38624.0,38621.0,0.01]
[1643731561687,0.0467,38624.0,38621.0,0.01]
[1643731561890,0.21720647,38633.0,38622.0,0.34934]
[1643731562085,0.194213,38634.0,38623.0,0.24411124]
[1643731562333,0.22346123,38634.0,38621.0,0.01]
[1643731562532,0.02924823,38626.0,38625.0,0.00157174]
[1643731562931,0.129479,38627.0,38625.0,0.00157174]
[1643731563334,0.05,38626.0,38625.0,0.3081565]
[1643731563535,0.05,38626.0,38625.0,0.30658476]
[1643731563733,0.05,38626.0,38624.0,0.104249]
[1643731564633,0.05,38626.0,38622.0,0.22863202]
[1643731564832,0.129479,38625.0,38623.0,0.00157179]
[1643731565836,0.129479,38625.0,38622.0,0.22863202]
[1643731566086,0.064739,38626.0,38622.0,0.23020383]
[1643731566279,0.05,38624.0,38622.0,0.23020383]
[1643731566478,0.064739,38626.0,38622.0,0.23020383]
[1643731566681,0.05,38625.0,38622.0,0.23020383]
[1643731566879,0.09398723,38626.0,38622.0,0.23020383]
[1643731567078,0.064739,38626.0,38622.0,0.22863202]
[1643731567278,0.09398723,38626.0,38622.0,0.23020384]
[1643731567679,0.09398723,38626.0,38622.0,0.00157182]
[1643731567880,0.02924823,38623.0,38622.0,0.00157182]
[1643731568080,0.05,38625.0,38622.0,0.00157182]
[1643731568280,0.05,38625.0,38621.0,0.01]
[1643731568281,0.064739,38626.0,38621.0,0.01]
[1643731568482,0.064739,38626.0,38621.0,0.01157185]
[1643731568684,0.09398723,38626.0,38621.0,0.01157185]
[1643731568883,0.05,38625.0,38621.0,0.01157185]
[1643731569081,0.09942706,38625.0,38622.0,0.12575807]
[1643731569280,0.09885446,38625.0,38622.0,0.12575807]
[1643731569480,0.12810269,38625.0,38621.0,0.01]
[1643731569733,0.12810269,38625.0,38622.0,0.00157182]
[1643731569928,0.09885446,38625.0,38622.0,0.00157182]
[1643731570426,0.02924823,38624.0,38622.0,0.00157182]
[1643731570626,0.02924823,38624.0,38621.0,0.01]
[1643731570826,0.02924823,38624.0,38622.0,0.00157182]
[1643731571027,0.09885446,38625.0,38622.0,0.00157182]
[1643731571431,0.04885446,38625.0,38624.0,0.30495969]
[1643731571833,0.5,38628.0,38624.0,0.89841093]
[1643731572035,0.5,38639.0,38625.0,0.34934]
[1643731572231,0.5,38639.0,38637.0,0.07914501]
[1643731572433,0.36196901,38645.0,38637.0,0.07914501]
[1643731572434,0.08091886,38645.0,38637.0,0.07914501]
[1643731572632,0.02924823,38646.0,38638.0,0.25615843]
[1643731572832,0.00137447,38647.0,38638.0,0.25615843]
[1643731572833,0.064702,38644.0,38638.0,0.25615843]
[1643731573234,0.05,38651.0,38640.0,0.0015714]
[1643731573484,0.05,38651.0,38646.0,1.04668501]
[1643731573485,0.00137509,38647.0,38646.0,1.04668501]
[1643731573684,0.00137509,38647.0,38646.0,1.24934]
[1643731573888,0.00137509,38647.0,38643.0,0.0476]
[1643731574087,0.00137509,38647.0,38640.0,0.26854735]
[1643731574285,0.064696,38649.0,38640.0,0.26697595]
[1643731574485,0.0013752,38647.0,38643.0,0.00157133]
[1643731575084,0.0013752,38647.0,38644.0,0.28524993]
[1643731575286,0.0013752,38647.0,38645.0,0.59857571]
[1643731575487,0.02924823,38661.0,38645.0,0.59857571]
[1643731575488,0.129374,38658.0,38647.0,1.35]
[1643731575688,0.05,38659.0,38648.0,0.64359564]
[1643731575888,0.002,38663.0,38650.0,0.02075177]
[1643731576087,0.002,38663.0,38659.0,0.26755426]
[1643731576291,0.051,38669.0,38660.0,1.05]
[1643731576292,0.001,38669.0,38660.0,1.05]
[1643731576493,0.001,38669.0,38661.0,1.96499564]
[1643731576689,0.001,38669.0,38661.0,2.01259564]
[1643731576887,0.001,38669.0,38662.0,0.1]
[1643731577089,0.002,38675.0,38664.0,1.35]
[1643731577349,0.0001,38675.0,38665.0,1.13351817]
[1643731577541,0.0001,38675.0,38673.0,0.2479585]
[1643731577741,0.0001,38675.0,38674.0,1.4589337]
[1643731577938,0.0001,38675.0,38674.0,1.21544954]
[1643731578141,0.04133756,38685.0,38676.0,1.25]
[1643731578345,0.001,38693.0,38679.0,1.3]
[1643731578550,2.0750655,38695.0,38681.0,0.02075177]
[1643731578741,0.064614,38691.0,38682.0,0.39934]
[1643731578945,1.70122238,38695.0,38683.0,0.29367068]
[1643731579144,0.58822238,38695.0,38689.0,0.13590857]
[1643731579342,0.002,38703.0,38692.0,1.35]
[1643731579542,0.002,38703.0,38693.0,0.59541068]
[1643731579742,0.002,38703.0,38697.0,1.1999]
[1643731579943,0.002,38703.0,38698.0,0.34934]
[1643731580145,0.02924823,38699.0,38697.0,0.47283765]
[1643731580346,0.03787207,38702.0,38697.0,0.52043765]
[1643731580542,0.03787207,38702.0,38698.0,0.08713718]
[1643731580543,0.00137176,38702.0,38698.0,0.08713718]
[1643731581078,0.00137176,38702.0,38697.0,0.47283765]
[1643731581483,0.02924823,38698.0,38697.0,0.47283765]
[1643731581685,0.02924823,38698.0,38686.0,0.6455]
[1643731581877,0.16575768,38697.0,38686.0,0.6455]
[1643731582077,0.26575768,38697.0,38687.0,0.08586884]
[1643731582278,0.179253,38697.0,38687.0,0.34540266]
[1643731582480,0.05,38697.0,38691.0,0.28038533]
[1643731582878,0.00137176,38694.0,38691.0,0.28038533]